fUSD/lending_fUSD_20250101
["ID","MTS","AMOUNT","RATE_DAILY","PERIOD"]
[347342836,1735713046879,-729.66,0.00011039,2]
[347342837,1735713046888,-1113.25,0.00011039,2]
[347342838,1735713046898,-600.62,0.00011039,2]
[347342839,1735713046907,-500.0,0.00011039,2]
[347342840,1735713046917,-500.0,0.00011039,2]
[347342841,1735713046926,-500.0,0.00011039,2]
[347342842,1735713046935,-500.0,0.00011039,2]
[347342843,1735713046945,-571.66,0.00011039,2]
[347342844,1735713046955,-633.72,0.00011039,2]
[347342845,1735713046964,-4345.65,0.00011039,2]
[347342846,1735713046973,-962.55,0.00011039,2]
[347342847,1735713046983,-4691.9,0.00011039,2]
[347342848,1735713046992,-959.11,0.00011039,2]
[347342849,1735713047002,-500.0,0.00011039,2]
[347342850,1735713047012,-2152.94,0.00011039,2]
[347342851,1735713047021,-500.0,0.00011039,2]
[347342852,1735713047031,-904.89,0.00011039,2]
[347342853,1735713047041,-500.0,0.00011039,2]
[347342854,1735713047052,-909.14,0.00011039,2]
[347342855,1735713047062,-1460.05,0.00011039,2]
[347342856,1735713047072,-1598.25,0.00011039,2]
[347342857,1735713047081,-1924.39,0.00011039,2]
[347342858,1735713047091,-1794.99,0.00011039,2]
[347342859,1735713047186,-871.63,0.00011039,2]
[347342860,1735713047196,-2618.87,0.00011039,2]
[347342861,1735713047205,-500.0,0.00011039,2]
[347342862,1735713047214,-648.28,0.00011039,2]
[347342863,1735713047224,-500.0,0.00011039,2]
[347342864,1735713047233,-2567.15,0.00011039,2]
[347342865,1735713047242,-500.0,0.00011039,2]
[347342866,1735713047252,-1202.26,0.00011039,2]
[347342867,1735713047261,-501.63,0.00011039,2]
[347342868,1735713047270,-923.76,0.00011039,2]
[347342869,1735713047280,-1674.66,0.00011039,2]
[347342870,1735713047289,-1686.02,0.00011039,2]
[347342871,1735713047298,-601.12,0.00011039,2]
[347342872,1735713047308,-671.56,0.00011039,2]
[347342873,1735713047317,-967.8,0.00011039,2]
[347342874,1735713047327,-2823.02,0.00011039,2]
[347342875,1735713047336,-678.23,0.00011039,2]
[347342876,1735713047345,-288.54999384,0.00011039,2]
[347342877,1735713047354,-3005.08,0.00011039,2]
[347342878,1735713047364,-1280.23,0.00011039,2]
[347342879,1735713047373,-1621.47,0.00011039,2]
[347342880,1735713047382,-571.82805168,0.00011039,2]
[347342881,1735713047392,-984.2,0.00011039,2]
[347342882,1735713047401,-5342.52,0.00011039,2]
[347342883,1735713047411,-500.0,0.00011039,2]
[347342884,1735713047420,-4611.69,0.00011039,2]
[347342885,1735713047429,-500.0,0.00011039,2]
[347342886,1735713047439,-500.0,0.00011039,2]
[347342887,1735713047448,-500.0,0.00011039,2]
[347342888,1735713047458,-500.0,0.00011039,2]
[347342889,1735713047467,-500.0,0.00011039,2]
[347342890,1735713047476,-522.49,0.00011039,2]
[347342891,1735713047486,-500.0,0.00011039,2]
[347342892,1735713047495,-774.78,0.00011039,2]
[347342893,1735713047504,-500.0,0.00011039,2]
[347342894,1735713047514,-5086.9,0.00011039,2]
[347342895,1735713047523,-1379.72,0.00011039,2]
[347342896,1735713047532,-4580.95,0.00011039,2]
[347342897,1735713047541,-879.53,0.00011039,2]
[347342898,1735713047550,-5534.47,0.00011039,2]
[347342899,1735713047559,-1986.77,0.00011039,2]
[347342900,1735713047569,-2181.37,0.00011039,2]
[347342901,1735713047578,-500.0,0.00011039,2]
[347342902,1735713047587,-718.54,0.00011039,2]
[347342903,1735713047597,-500.0,0.00011039,2]
[347342904,1735713047607,-2196.41,0.00011039,2]
[347342905,1735713047616,-1541.01,0.00011039,2]
[347342906,1735713047625,-995.16,0.00011039,2]
[347342907,1735713047635,-500.0,0.00011039,2]
[347342908,1735713047644,-1666.46,0.00011039,2]
[347342909,1735713047653,-500.0,0.00011039,2]
[347342910,1735713047662,-590.41,0.00011039,2]
[347342911,1735713047671,-977.8,0.00011039,2]
[347342912,1735713047681,-2917.61,0.00011039,2]
[347342913,1735713047690,-500.0,0.00011039,2]
[347342914,1735713047699,-1229.25,0.00011039,2]
[347342915,1735713047708,-2339.09,0.00011039,2]
[347342916,1735713047717,-500.0,0.00011039,2]
[347342917,1735713047726,-500.0,0.00011039,2]
[347342918,1735713047736,-549.27,0.00011039,2]
[347342919,1735713047745,-936.54,0.00011039,2]
[347342920,1735713047754,-500.0,0.00011039,2]
[347342921,1735713047763,-521.4,0.00011039,2]
[347342922,1735713047772,-500.0,0.00011039,2]
[347342923,1735713047781,-500.0,0.00011039,2]
[347342924,1735713047791,-1206.71,0.00011039,2]
[347342925,1735713047800,-512.14,0.00011039,2]
[347342926,1735713047809,-795.61,0.00011039,2]
[347342927,1735713047818,-500.0,0.00011039,2]
[347342928,1735713047828,-630.52,0.00011039,2]
[347342929,1735713047837,-646.67,0.00011039,2]
[347342930,1735713047847,-230.21951793,0.00011039,2]
[347342931,1735713047860,-500.0,0.00011039,2]
[347342932,1735713047869,-3669.93,0.00011039,2]
[347342933,1735713047879,-530.59,0.00011039,2]
[347342934,1735713047887,-1184.64,0.00011039,2]
[347342935,1735713047897,-676.0,0.00011039,2]
[347342936,1735713047906,-500.0,0.00011039,2]
[347342937,1735713047915,-3693.89,0.00011039,2]
[347342938,1735713047924,-500.0,0.00011039,2]
[347342939,1735713047934,-500.0,0.00011039,2]
[347342940,1735713047943,-1877.45,0.00011039,2]
[347342941,1735713047952,-500.0,0.00011039,2]
[347342942,1735713047962,-877.86,0.00011039,2]
[347342943,1735713047971,-500.0,0.00011039,2]
[347342944,1735713047980,-5705.22,0.00011039,2]
[347342945,1735713047990,-2920.88,0.00011039,2]
[347342946,1735713047999,-500.0,0.00011039,2]
[347342947,1735713048008,-529.38,0.00011039,2]
[347342948,1735713048018,-3072.64,0.00011039,2]
[347342949,1735713048027,-500.0,0.00011039,2]
[347342950,1735713048037,-742.32,0.00011039,2]
[347342951,1735713048051,-500.0,0.00011039,2]
[347342952,1735713048060,-691.93,0.00011039,2]
[347342953,1735713048070,-693.76,0.00011039,2]
[347342954,1735713048080,-500.0,0.00011039,2]
[347342955,1735713048091,-664.17,0.00011039,2]
[347342956,1735713048101,-4377.68,0.00011039,2]
[347342957,1735713048111,-500.0,0.00011039,7]
[347342958,1735713048122,-3247.43,0.00011039,2]
[347342959,1735713048131,-500.0,0.00011039,2]
[347342960,1735713048141,-1241.84,0.00011039,2]
[347342961,1735713048150,-500.0,0.00011039,2]
[347342962,1735713048160,-2271.07,0.00011039,2]
[347342963,1735713048170,-7901.23,0.00011039,2]
[347342964,1735713048179,-2830.19,0.00011039,2]
[347342965,1735713048190,-851.55,0.00011039,2]
[347342966,1735713048199,-500.0,0.00011039,2]
[347342967,1735713048209,-2248.81,0.00011039,2]
[347342968,1735713048218,-1339.57,0.00011039,2]
[347342969,1735713048228,-500.0,0.00011039,2]
[347342970,1735713048239,-500.0,0.00011039,2]
[347342971,1735713048249,-3038.8,0.00011039,2]
[347342972,1735713048260,-500.0,0.00011039,2]
[347342973,1735713048269,-2308.74,0.00011039,2]
[347342974,1735713048279,-500.0,0.00011039,2]
[347342975,1735713048289,-2209.69,0.00011039,2]
[347342976,1735713048299,-326.80461925,0.00011039,2]
[347342977,1735713048308,-716.44,0.00011039,2]
[347342978,1735713048318,-716.44,0.00011039,2]
[347342979,1735713048327,-716.44,0.00011039,2]
[347342980,1735713048337,-716.44,0.00011039,2]
[347342981,1735713048346,-716.44,0.00011039,2]
[347342982,1735713048356,-500.0,0.00011039,2]
[347342983,1735713048365,-716.44,0.00011039,2]
[347342984,1735713048375,-716.44,0.00011039,2]
[347342985,1735713048385,-5200.46,0.00011039,2]
[347342986,1735713048394,-716.44,0.00011039,2]
[347342987,1735713048403,-632.36,0.00011039,2]
[347342988,1735713048412,-716.44,0.00011039,2]
[347342989,1735713048421,-716.44,0.00011039,2]
[347342990,1735713048430,-716.44,0.00011039,2]
[347342991,1735713048440,-716.44,0.00011039,2]
[347342992,1735713048450,-716.44,0.00011039,2]
[347342993,1735713048459,-716.44,0.00011039,2]
[347342994,1735713048468,-716.44,0.00011039,2]
[347342995,1735713048477,-716.44,0.00011039,2]
[347342996,1735713048487,-716.44,0.00011039,2]
[347342997,1735713048496,-716.44,0.00011039,2]
[347342998,1735713048505,-716.44,0.00011039,2]
[347342999,1735713048515,-3107.22,0.00011039,2]
[347343000,1735713048525,-716.44,0.00011039,2]
[347343001,1735713048534,-716.44,0.00011039,2]
[347343002,1735713048542,-716.44,0.00011039,2]
[347343003,1735713048552,-716.44,0.00011039,2]
[347343004,1735713048561,-1896.39,0.00011039,2]
[347343005,1735713048571,-716.60100831,0.00011039,2]
[347343006,1735713048580,-500.0,0.00011039,2]
[347343007,1735713048590,-610.65,0.00011039,2]
[347343008,1735713048599,-500.0,0.00011039,2]
[347343009,1735713048609,-7770.6,0.00011039,2]
[347343010,1735713048619,-1041.37,0.00011039,2]
[347343011,1735713048628,-889.35,0.00011039,2]
[347343012,1735713048637,-500.0,0.00011039,2]
[347343013,1735713048647,-500.0,0.00011039,2]
[347343014,1735713048657,-1250.91,0.00011039,2]
[347343015,1735713048667,-3745.7,0.00011039,2]
[347343016,1735713048676,-500.0,0.00011039,2]
[347343017,1735713048686,-16491.79,0.00011039,2]
[347343018,1735713048698,-666.0,0.00011039,2]
[347343019,1735713048707,-500.0,0.00011039,2]
[347343020,1735713048717,-919.5,0.00011039,2]
[347343021,1735713048726,-532.68,0.00011039,2]
[347343022,1735713048736,-1594.16,0.00011039,2]
[347343023,1735713048745,-3165.07,0.00011039,2]
[347343024,1735713048754,-500.0,0.00011039,2]
[347343025,1735713048765,-604.84,0.00011039,2]
[347343026,1735713048775,-500.0,0.00011039,2]
[347343027,1735713048784,-4987.18,0.00011039,2]
[347343028,1735713048794,-500.0,0.00011039,2]
[347343029,1735713048803,-1645.78,0.00011039,2]
[347343030,1735713048813,-2148.18,0.00011039,2]
[347343031,1735713048822,-500.0,0.00011039,2]
[347343032,1735713048832,-3033.79,0.00011039,2]
[347343033,1735713048841,-2432.02,0.00011039,2]
[347343034,1735713048851,-500.0,0.00011039,2]
[347343035,1735713048860,-3072.22,0.00011039,2]
[347343036,1735713048869,-666.0,0.00011039,2]
[347343037,1735713048879,-500.0,0.00011039,2]
[347343038,1735713048889,-9091.74,0.00011039,2]
[347343039,1735713048898,-635.25,0.00011039,2]
[347343040,1735713048907,-538.02,0.00011039,2]
[347343041,1735713048916,-1314.04,0.00011039,2]
[347343042,1735713048926,-3248.0,0.00011039,2]
[347343043,1735713048935,-1429.52,0.00011039,2]
[347343044,1735713048945,-5365.67,0.00011039,2]
[347343045,1735713048954,-500.0,0.00011039,2]
[347343046,1735713048963,-2464.24,0.00011039,2]
[347343047,1735713048973,-640.98,0.00011039,2]
[347343048,1735713048983,-500.0,0.00011039,2]
[347343049,1735713048993,-3486.41,0.00011039,2]
[347343050,1735713049002,-2199.57,0.00011039,2]
[347343051,1735713049011,-657.69,0.00011039,2]
[347343052,1735713049021,-2481.54,0.00011039,2]
[347343053,1735713049030,-652.86,0.00011039,2]
[347343054,1735713049040,-20326.95,0.00011039,2]
[347343055,1735713049052,-1411.07,0.00011039,2]
[347343056,1735713049061,-666.0,0.00011039,2]
[347343057,1735713049071,-500.0,0.00011039,2]
[347343058,1735713049080,-5662.45,0.00011039,2]
[347343059,1735713049090,-3226.18,0.00011039,2]
[347343060,1735713049099,-510.83,0.00011039,2]
[347343061,1735713049108,-1114.28,0.00011039,2]
[347343062,1735713049119,-1397.28,0.00011039,2]
[347343063,1735713049128,-500.0,0.00011039,2]
[347343064,1735713049137,-648.87,0.00011039,2]
[347343065,1735713049146,-1581.2,0.00011039,2]
[347343066,1735713049156,-2636.98,0.00011039,2]
[347343067,1735713049165,-15781.78,0.00011039,2]
[347343068,1735713049175,-1315.95,0.00011039,2]
[347343069,1735713049185,-749.65,0.00011039,2]
[347343070,1735713049194,-500.0,0.00011039,2]
[347343071,1735713049204,-500.0,0.00011039,2]
[347343072,1735713049213,-5272.53,0.00011039,2]
[347343073,1735713049223,-500.0,0.00011039,2]
[347343074,1735713049232,-7236.9,0.00011039,2]
[347343075,1735713049242,-5107.64,0.00011039,2]
[347343076,1735713049252,-592.22,0.00011039,2]
[347343077,1735713049261,-500.0,0.00011039,2]
[347343078,1735713049271,-13495.88,0.00011039,2]
[347343079,1735713049281,-674.01,0.00011039,2]
[347343080,1735713049290,-500.0,0.00011039,2]
[347343081,1735713049300,-2254.47,0.0001104,2]
[347343082,1735713049310,-6626.21,0.0001104,2]
[347343083,1735713049319,-2900.43,0.0001104,2]
[347343084,1735713049329,-4280.83,0.0001104,2]
[347343085,1735713049339,-3505.1,0.0001104,2]
[347343086,1735713049349,-1632.38,0.0001104,2]
[347343087,1735713049359,-4843.55,0.0001104,2]
[347343088,1735713049368,-1194.27,0.0001104,2]
[347343089,1735713049378,-3110.83,0.0001104,2]
[347343090,1735713049388,-995.01,0.0001104,2]
[347343091,1735713049398,-2808.5195848,0.0001104,2]
[347343092,1735713049407,-2774.58,0.0001104,2]
[347343093,1735713049417,-4750.71,0.0001104,2]
[347343094,1735713049427,-2267.82,0.0001104,2]
[347343095,1735713049437,-1995.59,0.0001104,2]
[347343096,1735713049447,-4134.53,0.0001104,2]
[347343097,1735713049457,-3270.99,0.0001104,2]
[347343098,1735713049467,-3477.35,0.0001104,2]
[347343099,1735713049476,-7889.62,0.0001104,2]
[347343100,1735713049486,-5148.32,0.0001104,2]
[347343101,1735713049495,-2721.03,0.0001104,2]
[347343102,1735713049504,-4017.9252976,0.0001104,2]
[347343103,1735713049514,-10156.2021864,0.0001104,2]
[347343104,1735713050307,-4153.82927351,0.0001104,2]
[347343105,1735713050322,-139.62854009,0.0001104,2]
[347343106,1735713050332,-498.17145976,0.0001104,2]
[347343107,1735713050343,-169.17571135,0.0001104,2]
[347343108,1735713050353,-245.25624039,0.00011041,2]
[347343109,1735713051643,394.14,8.219e-05,2]
[347343110,1735713051708,394.14,0.0001048,2]
[347343111,1735713052743,-500.0,0.00011036,2]
[347343112,1735713052755,-363.92171178,0.00011036,2]
[347343113,1735713052766,-2035.99828822,0.00011036,2]
[347343114,1735713052776,-587.48,0.00011037,2]
[347343115,1735713052785,-246.11540683,0.00011039,2]
[347343116,1735713052797,-704.96459317,0.00011039,2]
[347343117,1735713052807,-258.93540683,0.00011041,2]
[347343118,1735713052820,-454.31835278,0.00011041,2]
[347343119,1735713052830,-1240.56,0.00011041,2]
[347343120,1735713052840,-500.0,0.00011041,2]
[347343121,1735713052849,-800.18,0.00011041,2]
[347343122,1735713052858,-500.0,0.00011041,2]
[347343123,1735713052867,-500.0,0.00011041,2]
[347343124,1735713052876,-515.36,0.00011041,2]
[347343125,1735713052885,-2319.7,0.00011041,2]
[347343126,1735713052895,-584.27,0.00011041,2]
[347343127,1735713052903,-2415.71019032,0.00011041,2]
[347343128,1735713052921,-17.83980968,0.00011041,2]
[347343129,1735713052930,-1143.0,0.00011041,2]
[347343130,1735713052939,-173.78964378,0.00011041,2]
[347343131,1735713052951,-326.21035622,0.00011041,2]
[347343132,1735713052960,-526.81758393,0.00011041,2]
[347343133,1735713052969,-739.52,0.00011041,2]
[347343134,1735713052979,-500.0,0.00011041,2]
[347343135,1735713052988,-500.0,0.00011041,2]
[347343136,1735713052997,-500.0,0.00011041,2]
[347343137,1735713053006,-939.02,0.00011041,2]
[347343138,1735713053016,-884.72978769,0.00011041,2]
[347343139,1735713053553,-500.0,0.00011036,2]
[347343140,1735713053562,-309.09021231,0.00011041,2]
[347343141,1735713053572,-500.0,0.00011041,2]
[347343142,1735713053581,-500.0,0.00011041,2]
[347343143,1735713053590,-1550.11,0.00011041,2]
[347343144,1735713053600,-500.0,0.00011041,2]
[347343145,1735713053610,-500.0,0.00011041,2]
[347343146,1735713053619,-1247.38,0.00011041,2]
[347343147,1735713053629,-2325.99,0.00011041,2]
[347343148,1735713053638,-226.88725746,0.00011041,2]
[347343149,1735713053648,-500.0,0.00011041,2]
[347343150,1735713053659,-2589.37,0.00011041,2]
[347343151,1735713053669,-569.56,0.00011041,2]
[347343152,1735713053680,-1105.77,0.00011041,2]
[347343153,1735713053689,-500.0,0.00011041,2]
[347343154,1735713053699,-2080.36,0.00011041,2]
[347343155,1735713053709,-885.94,0.00011041,2]
[347343156,1735713053718,-500.0,0.00011041,2]
[347343157,1735713053727,-2219.65,0.00011041,2]
[347343158,1735713053736,-500.0,0.00011041,2]
[347343159,1735713053746,-500.0,0.00011041,2]
[347343160,1735713053756,-2361.84,0.00011041,2]
[347343161,1735713053765,-500.0,0.00011041,2]
[347343162,1735713053774,-500.0,0.00011041,2]
[347343163,1735713053783,-500.0,0.00011041,2]
[347343164,1735713053793,-500.0,0.00011041,2]
[347343165,1735713053802,-500.0,0.00011041,2]
[347343166,1735713053811,-1527.82970045,0.00011041,2]
[347343167,1735713053821,-2243.1,0.00011041,2]
[347343168,1735713053830,-1027.23,0.00011041,2]
[347343169,1735713053840,-500.0,0.00011041,2]
[347343170,1735713053849,-1790.5,0.00011041,2]
[347343171,1735713053859,-1211.53,0.00011041,2]
[347343172,1735713053868,-500.0,0.00011041,2]
[347343173,1735713053877,-500.0,0.00011041,2]
[347343174,1735713053886,-2907.66,0.00011041,2]
[347343175,1735713053896,-500.0,0.00011041,2]
[347343176,1735713053905,-928.2,0.00011041,2]
[347343177,1735713053914,-500.0,0.00011041,2]
[347343178,1735713053923,-827.78,0.00011041,2]
[347343179,1735713053933,-673.97,0.00011041,2]
[347343180,1735713053942,-534.29,0.00011041,2]
[347343181,1735713054198,-1347.76,0.00011041,2]
[347343182,1735713054211,-893.48,0.00011041,2]
[347343183,1735713054221,-1110.87868275,0.00011041,2]
[347343184,1735713054286,-373.32131725,0.00011041,2]
[347343185,1735713054295,-2422.95777639,0.00011041,2]
[347343186,1735713054307,-273.45222361,0.00011041,2]
[347343187,1735713054316,-125.56293862,0.00011041,2]
[347343188,1735713054326,-261.41049999,0.00011041,2]
[347343189,1735713054370,-307.5983704,0.00011038,2]
[347343190,1735713055185,-266.94263153,0.00011037,2]
[347343191,1735713055196,-233.05736847,0.00011037,2]
[347343192,1735713055206,-2491.2316296,0.00011038,2]
[347343193,1735713055216,-4122.04,0.00011039,2]
[347343194,1735713055226,-412.69656139,0.00011041,2]
[347343195,1735713055235,-682.87,0.00011041,2]
[347343196,1735713055244,-2109.53,0.00011041,2]
[347343197,1735713055253,-500.0,0.00011041,2]
[347343198,1735713055262,-1285.84,0.00011041,2]
[347343199,1735713055271,-500.0,0.00011041,2]
[347343200,1735713055280,-3073.81,0.00011041,2]
[347343201,1735713055289,-541.01,0.00011041,2]
[347343202,1735713055298,-500.0,0.00011041,2]
[347343203,1735713055307,-1045.05,0.00011041,2]
[347343204,1735713055316,-37949.92,0.00011041,2]
[347343205,1735713055325,-2318.21,0.00011041,2]
[347343206,1735713055334,-490.4,0.00011041,2]
[347343207,1735713055343,-161.02,0.00011042,2]
[347343208,1735713055352,-666.0,0.00011042,2]
[347343209,1735713055361,-666.0,0.00011042,2]
[347343210,1735713055370,-3340.09,0.00011043,2]
[347343211,1735713055379,-3280.01,0.00011043,2]
[347343212,1735713055389,-4013.02457404,0.00011043,2]
[347343213,1735713056808,150.0,0.00010826,2]
[347343214,1735713056842,150.0,0.00010799,2]
[347343215,1735713056875,150.0,0.00010956,2]
[347343216,1735713058422,970.57493,0.00010817,2]
[347343217,1735713120480,150.0,0.0001098,2]
[347343218,1735713120626,1500.0,0.00010878,2]
[347343219,1735713128231,150.0,0.00010858,2]
[347343220,1735713128728,1444.54267994,0.00010794,2]
[347343221,1735713136505,150.0,0.00010833,2]
[347343222,1735713136677,240.52642161,0.00010912,2]
[347343223,1735713143896,150.0,0.00011005,2]
[347343224,1735713143946,150.0,0.00011006,2]
[347343225,1735713143995,150.0,0.00010856,2]
[347343226,1735713144035,150.0,0.00010795,2]
[347343227,1735713144119,150.0,0.00010989,2]
[347343228,1735713144821,150.0,0.00010921,2]
[347343229,1735713152931,1500.0,0.00010823,2]
[347343230,1735713156101,1500.0,0.00010819,2]
[347343231,1735713209186,271.47,0.00010137,2]
[347343233,1735713245842,150.010115,0.0002,120]
[347343234,1735713246732,150.010115,0.0002,120]
[347343235,1735713247349,150.010115,0.0002,120]
[347343236,1735713247818,150.010115,0.0002,120]
[347343237,1735713248320,150.010115,0.0002,120]
[347343238,1735713248830,150.010115,0.0002,120]
[347343239,1735713249330,150.010115,0.0002,120]
[347343240,1735713249843,150.010115,0.0002,120]
[347343241,1735713250365,150.010115,0.0002,120]
[347343242,1735713250868,150.010115,0.0002,120]
[347343243,1735713251419,150.010115,0.0002,120]
[347343244,1735713251916,150.010115,0.0002,120]
[347343245,1735713252409,150.010115,0.0002,120]
[347343246,1735713252990,150.010115,0.0002,120]
[347343247,1735713253416,150.010115,0.0002,120]
[347343248,1735713253943,150.010115,0.0002,120]
[347343249,1735713254801,150.010115,0.0002,120]
[347343250,1735713254985,150.010115,0.0002,120]
[347343251,1735713255549,150.010115,0.0002,120]
[347343252,1735713256103,150.010115,0.0002,120]
[347343253,1735713289473,152.216107,0.0001081,2]
[347343254,1735713292008,184.424,0.0001049,2]
[347343255,1735713320712,164.90150479,0.00010937,2]
[347343256,1735713412488,417.16,0.00010149,2]
[347343257,1735713432216,1000.0,0.00010149,2]
[347343258,1735713452028,386.02522,0.0001093,2]
[347343259,1735713469280,23900.0,0.00010149,2]
[347343260,1735713550975,164.90150479,0.00010936,2]
[347343261,1735713716517,250.0,0.000101,2]
[347343262,1735713727936,150.0,0.00010913,2]
[347343263,1735713746180,150.0,0.00010909,2]
[347343264,1735713756121,1500.0,0.00010929,2]
[347343265,1735713756169,150.0,0.00010882,2]
[347343266,1735713774876,164.90150479,0.00010936,2]
[347343267,1735713852705,258.92631397,0.00010918,2]
[347343268,1735713879354,800.0,8.859e-05,2]
[347343269,1735713879422,500.0,8.22e-05,2]
[347343270,1735713880931,800.0,0.00010229,2]
[347343271,1735713881013,500.0,0.0001096,2]
[347343272,1735713910664,150.0,0.00010652,2]
[347343273,1735713911048,150.0,0.00010948,2]
[347343274,1735713913924,150.0,0.00010652,2]
[347343275,1735713918878,2500.0,8.22e-05,2]
[347343276,1735713920458,2500.0,9.59e-05,2]
[347343277,1735713922304,150.0,0.00010652,2]
[347343278,1735713922478,2500.0,0.0001096,2]
[347343279,1735713929365,176.456,0.0001049,2]
[347343280,1735714035212,354.73,8.219e-05,2]
[347343281,1735714035300,354.73,0.00010481,2]
[347343282,1735714203145,297.86,0.00010137,2]
[347343286,1735714232377,-343.89259072,0.00011034,2]
[347343287,1735714232388,-3614.46740928,0.00011034,2]
[347343288,1735714232398,-2963.7,0.00011034,2]
[347343289,1735714232407,-577.80331716,0.00011034,2]
[347343290,1735714232565,-271.5,0.00011034,2]
[347343291,1735714232577,-404.086,0.00011034,2]
[347343292,1735714232590,-504.854,0.00011034,2]
[347343293,1735714232604,-375.839991,0.00011034,2]
[347343294,1735714232732,-576.58669184,0.00011034,2]
[347343295,1735714232742,-37.18330816,0.00011034,2]
[347343296,1735714232753,-1162.49132421,0.00011034,2]
[347343388,1735714238274,-3274.28536763,0.00011034,2]
[347343389,1735714238284,-1187.82,0.00011034,2]
[347343390,1735714238294,-8930.49,0.00011034,2]
[347343391,1735714238303,-605.8,0.00011034,2]
[347343392,1735714238313,-10711.52,0.00011034,2]
[347343393,1735714238322,-5068.3,0.00011034,2]
[347343394,1735714238331,-8990.03,0.00011034,2]
[347343395,1735714238341,-2753.76,0.00011034,2]
[347343396,1735714238350,-1282.89,0.00011034,2]
[347343397,1735714238359,-1318.65,0.00011034,2]
[347343398,1735714238368,-2011.29,0.00011034,2]
[347343399,1735714238377,-9101.2,0.00011034,2]
[347343400,1735714238387,-3471.47,0.00011034,2]
[347343401,1735714238396,-2554.89,0.00011034,2]
[347343402,1735714238406,-500.0,0.00011034,2]
[347343403,1735714238416,-3793.43,0.00011034,2]
[347343404,1735714238425,-501.24,0.00011034,2]
[347343405,1735714238435,-496.95,0.00011034,2]
[347343406,1735714238445,-498.35,0.00011034,2]
[347343407,1735714238455,-491.23,0.00011034,2]
[347343408,1735714238465,-503.36,0.00011034,2]
[347343409,1735714238474,-500.47,0.00011034,2]
[347343410,1735714238483,-507.37,0.00011034,2]
[347343411,1735714238492,-498.1,0.00011035,2]
[347343412,1735714238501,-503.0,0.00011035,2]
[347343413,1735714238510,-493.89,0.00011035,2]
[347343414,1735714238519,-150.010115,0.00011035,2]
[347343415,1735714238531,-875.5,0.00011035,2]
[347343416,1735714238540,-2236.34,0.00011035,2]
[347343417,1735714238549,-937.1,0.00011035,2]
[347343418,1735714238558,-500.0,0.00011035,2]
[347343419,1735714238567,-500.0,0.00011035,2]
[347343420,1735714238576,-978.48,0.00011035,2]
[347343421,1735714238585,-1578.69,0.00011035,2]
[347343422,1735714238593,-500.0,0.00011035,2]
[347343423,1735714238603,-4004.02,0.00011035,2]
[347343424,1735714238612,-2442.37,0.00011035,2]
[347343425,1735714238621,-500.0,0.00011035,2]
[347343426,1735714238630,-500.0,0.00011035,2]
[347343427,1735714238639,-2575.45,0.00011035,2]
[347343428,1735714238648,-582.56,0.00011035,2]
[347343429,1735714238657,-2913.66,0.00011035,2]
[347343431,1735714238666,-616.54,0.00011035,2]